Workbook

Sheet Notes
B1: Welcome to the Kansas State University Farm Management Guides for Beef Enterprises
B2: Last Updated Date: | D2: 2015-12-01
B3: The Kansas State University cost-return budgets were developed to serve as a barometer of profitability for various livestock industry enterprises.
B4: These budgets are NOT intended to represent any one operation.
B5: Each individual operation should adjust key inputs to reflect their own situation.
B6: Any number that is blue and bolded is an input the user can adjust.
B9: This spreadsheet is brought to you by:
B16: AND

Sheet Prices
A1: Current Prices
A2: One Year Out Prices
A3: Five Years Out Prices
B4: =A1 -> Current Prices | D4: =A2 -> One Year Out Prices | G4: =A3 -> Five Years Out Prices
B5: (as of December 1, 2015) | C5: Notes/source | D5: =B5 -> (as of December 1, 2015) | E5: Notes/source | G5: ='[1]Master Prices'!$G$5 -> (Nov. 2014 USDA)
A6: ='[1]Master Prices'!$A$26 -> Corn ($/bu) | B6: 3.77 | C6: USDA St. Joseph, MO SJ_GR851 Report (http://www.ams.usda.gov/mnreports/sj_gr851.txt) | D6: 4.066 | E6: USE deferred CME C to Adjust off of Current price | G6: 3.55 | H6: http://www.usda.gov/oce/commodity/projections/
A7: ='[1]Master Prices'!$A$28 -> Soybean Meal ($/ton) | B7: 281.6 | C7: USDA St. Joseph, MO SJ_GR210 Report (http://www.ams.usda.gov/mnreports/sj_gr210.txt) | D7: 291.7 | E7: USE deferred CME SB to Adjust off of Current price | G7: 326 | H7: http://www.usda.gov/oce/commodity/projections/
A8: ='[1]Master Prices'!$A$29 -> DDGS ($/ton) | B8: 147.5 | C8: USDA St. Joseph, MO NW_GR112 Report (http://www.ams.usda.gov/mnreports/nw_gr112.txt) | D8: 159.0809019 | E8: Adjust off of Corn Price | G8: 138.8925729 | H8: Adjust off of Corn Price
A10: ='[1]Master Prices'!A30 -> Silage ($/ton) | B10: 30.16 | C10: ='[1]Master Prices'!C30 -> 0 | D10: 32.528 | E10: ='[1]Master Prices'!E30 -> 0 | G10: 28.4 | H10: Equal to 8X the corn price
A11: ='[1]Master Prices'!A31 -> Prairie Hay ($/ton) | B11: 60 | C11: ='[1]Master Prices'!C31 -> 0 | D11: 64.71087533 | E11: ='[1]Master Prices'!E31 -> 0 | G11: 56.49867374 | H11: Adjust off of Corn Price
A12: ='[1]Master Prices'!A32 -> Alfalfa ($/ton) | B12: 115 | C12: ='[1]Master Prices'!C32 -> 0 | D12: 124.0291777 | E12: ='[1]Master Prices'!E32 -> 0 | G12: 108.2891247 | H12: Adjust off of Corn Price
A13: ='[1]Master Prices'!A34 -> Pasture Rental ($/acre) | B13: 18.06 | C13: ='[1]Master Prices'!C34 -> 0 | D13: 18.4212 | E13: ='[1]Master Prices'!E34 -> 0 | G13: 19.866 | H13: Current price *1.10
A14: ='[1]Master Prices'!A35 -> Crop Residue ($/acre) | B14: 15 | C14: ='[1]Master Prices'!C35 -> 0 | D14: 15.3 | E14: ='[1]Master Prices'!E35 -> 0 | G14: 16.5 | H14: Current price *1.10
A15: ='[1]Master Prices'!A36 -> Beef Cow Mineral ($/ton) | B15: 800 | C15: ='[1]Master Prices'!C36 -> 0 | D15: 816 | E15: ='[1]Master Prices'!E36 -> 0 | G15: 880 | H15: Current price *1.10
A16: ='[1]Master Prices'!A37 -> Other Beef Mineral ($/ton) | B16: 550 | C16: ='[1]Master Prices'!C37 -> 0 | D16: 561 | E16: ='[1]Master Prices'!E37 -> 0 | G16: 605 | H16: Current price *1.10
A18: ='[1]Master Prices'!A12 -> Heifer Calf Price ($/cwt) | B18: 189.0148 | C18: ='[1]Master Prices'!C12 -> 0 | D18: 183.5398 | E18: ='[1]Master Prices'!E12 -> 0 | G18: 217.0753434 | H18: Adjust off of Steer Calf price
A19: ='[1]Master Prices'!A13 -> Steer Calves Price ($/cwt) | B19: 206.4596491 | C19: ='[1]Master Prices'!C13 -> 0 | D19: 200.9846491 | E19: ='[1]Master Prices'!E13 -> 0 | G19: 237.11 | H19: http://www.usda.gov/oce/commodity/projections/
A20: ='[1]Master Prices'!A14 -> Feeder Steers ($/cwt) | B20: 180.75 | C20: ='[1]Master Prices'!C14 -> 0 | D20: 175.275 | E20: ='[1]Master Prices'!E14 -> 0 | G20: 193.23 | H20: http://www.usda.gov/oce/commodity/projections/
A21: ='[1]Master Prices'!A15 -> 5-area Fed Cattle ($/cwt) | B21: 126.34 | C21: ='[1]Master Prices'!C15 -> 0 | D21: 120.365 | E21: ='[1]Master Prices'!E15 -> 0 | G21: 158.42 | H21: http://www.usda.gov/oce/commodity/projections/
A22: ='[1]Master Prices'!A16 -> Beef Cull cow ($/cwt) | B22: 75 | C22: ='[1]Master Prices'!C16 -> 0 | D22: 71.45302359 | E22: ='[1]Master Prices'!E16 -> 0 | G22: 94.04384993 | H22: Fed cattle change imposed

Sheet Feed
B1: CATTLE RATIONS TO SET FEED AND GRAZING COSTS
B3: Cow-Calf Feed Requirements | C3: (per cow unit + 16% of developing heifer + 4% of bull) | H3: Stocker Feed Requirements | I3: (per animal unit)
C4: Qty | D4: Unit | I4: Qty | J4: Unit
B5: Pasture | C5: 10 | D5: total acres per year | H5: Pasture | I5: 4 | J5: total acres for feeding period
B6: Crop Residue Grazing | C6: 2 | D6: total acres per year | H6: Crop Residue | I6: 0 | J6: total acres for feeding period
B7: Prairie/Brome Hay | C7: 2 | D7: total tons per year | H7: Prairie/Brome Hay | I7: 0 | J7: total tons for feeding period
B8: Silage | C8: 0 | D8: total tons per year | H8: Silage | I8: 0 | J8: total tons for feeding period
B9: Alfalfa | C9: 0 | D9: total tons per year | H9: Alfalfa | I9: 0 | J9: total tons for feeding period
B10: Total Harvested Forage | C10: =SUM(C7:C9) -> 2 | D10: total tons per year | H10: Total Harvested Forage | I10: =SUM(I7:I9) -> 0 | J10: total tons for feeding period
B11: Corn | C11: =0.16*(3*198) -> 95.04 | D11: total lbs per year | H11: Corn | I11: 0 | J11: total pounds for feeding period
B12: DDG's | C12: =(3*60)+(0.16*(0.2*198)) -> 186.336 | D12: total lbs per year | H12: DDG's | I12: 0 | J12: total pounds for feeding period
B13: Soybean Meal | C13: 0 | D13: total lbs per year | H13: Soybean Meal | I13: 0 | J13: total pounds for feeding period
B14: Total Grain/Protein Supplements | C14: =SUM(C11:C13) -> 281.376 | D14: total lbs per year | H14: Total Grain/Protein Supplements | I14: =SUM(I11:I13) -> 0 | J14: total pounds for feeding period
B15: Salt and Mineral | C15: =(0.25*365) -> 91.25 | D15: total lbs per year | H15: Salt and Mineral | I15: =0.25*150 -> 37.5 | J15: total pounds for feeding period
B18: Backgrounding Feed Requirements | C18: (per animal unit) | H18: Finishing Feed Requirements | I18: (per animal unit)
C19: Qty | D19: Unit | I19: Qty | J19: Unit
B20: Pasture | C20: 0 | D20: total acres for feeding period | H20: Prairie/Brome Hay | I20: 1.5 | J20: lbs/day
B21: Crop Residue | C21: 0 | D21: total acres for feeding period | H21: Silage | I21: 0 | J21: lbs/day
B22: Prairie/Brome Hay | C22: 3.5 | D22: lbs/day | H22: Alfalfa | I22: 1.5 | J22: lbs/day
B23: Silage | C23: 0 | D23: lbs/day | H23: Total Harvested Forage | I23: =SUM(I20:I22) -> 3 | J23: lbs/day
B24: Alfalfa | C24: 3.5 | D24: lbs/day | H24: Corn | I24: 17 | J24: lbs/day
B25: Total Harvested Forage | C25: =SUM(C22:C24) -> 7 | D25: lbs/day | H25: DDG's | I25: 5 | J25: lbs/day
B26: Corn | C26: 7 | D26: lbs/day | H26: Soybean Meal | I26: 0 | J26: lbs/day
B27: DDG's | C27: 7 | D27: lbs/day | H27: Total Grain/Protein Supplements | I27: =SUM(I24:I26) -> 22 | J27: lbs/day
B28: Soybean Meal | C28: 0 | D28: lbs/day | H28: Salt and Mineral | I28: 0.5 | J28: lbs/day
B29: Total Grain/Protein Supplements | C29: =SUM(C26:C28) -> 14 | D29: lbs/day
B30: Salt and Mineral | C30: 0.3 | D30: lbs/day

Sheet Cow-Calf
A1: KSU Beef Cow-Calf Budget | C1: Current Prices | G1: =IF(C1=Prices!B4,TEXT(Prices!B5,"MMM-YYYY"),IF(C1=Prices!D4,TEXT(Prices!D5,"MMM-YYYY"),TEXT(Prices!G5,"MMM-YYYY"))) -> (as of December 1, 2015)
L2: Click on "Current Prices" to change to "One Year Out Prices " or "Five Years Out Prices"
A3: Production Efficiency Information
A4: Weaning Percentage | B4: 0.89
A5: Cow Replacement Percentage | B5: 0.16
A7: Revenue | B7: Price | C7: Unit | E7: Qty | F7: Unit | J7: Total per Year per Cow
A8: Weaned Calf Sale | B8: =0.5*(IF(C1=Prices!A1,Prices!B19,IF(C1=Prices!A2,Prices!D19,IF(C1=Prices!A3,Prices!G19,""))))+0.5*(IF(C1=Prices!A1,Prices!B18,IF(C1=Prices!A2,Prices!D18,IF(C1=Prices!A3,Prices!G18,"")))) -> 197.7372246 | C8: per cwt | D8: x | E8: 550 | F8: lbs | G8: x | H8: =B4 -> 0.89 | I8: = | J8: =B8*(E8/100)*H8 -> 967.9237142
A9: Cull Cows | B9: =IF(C1=Prices!A1, Prices!B22, IF(C1=Prices!A2, Prices!D22, IF(C1=Prices!A3, Prices!G22, ""))) -> 75 | C9: per cwt | D9: x | E9: 1250 | F9: lbs | G9: x | H9: =B5 -> 0.16 | I9: = | J9: =B9*(E9/100)*H9 -> 150
A10: Other Income
A11: Gross Income | J11: =SUM(J8:J10) -> 1117.923714
A13: Variable Costs
A14: Pasture | B14: =IF(C1=Prices!A1, Prices!B13, IF(C1=Prices!A2, Prices!D13, IF(C1=Prices!A3,Prices!G13, ""))) -> 18.06 | C14: per acre | D14: x | E14: =Feed!C5 -> 10 | F14: total acres | I14: = | J14: =B14*E14 -> 180.6
A15: Crop Residue | B15: =IF(C1=Prices!A1, Prices!B14, IF(C1=Prices!A2, Prices!D14, IF(C1=Prices!A3,Prices!G14, ""))) -> 15 | C15: per acre | D15: x | E15: =Feed!C6 -> 2 | F15: total acres | I15: = | J15: =B15*E15 -> 30
A16: Harvested Forage | B16: =IF(C1=Prices!A1,(((Feed!C7/Feed!C10)*Prices!B11)+((Feed!C8/Feed!C10)*Prices!B10)+((Feed!C9/Feed!C10)*Prices!B12)),IF(C1=Prices!A2,(((Feed!C7/Feed!C10)*Prices!D11)+((Feed!C8/Feed!C10)*Prices!D10)+((Feed!C9/Feed!C10)*Prices!D12)),IF(C1=Prices!A3,((Feed!C7/Feed!C10)*Prices!G11)+((Feed!C8/Feed!C10)*Prices!G10)+((Feed!C9/Feed!C10)*Prices!G12),""))) -> 60 | C16: per ton | D16: x | E16: =Feed!C10 -> 2 | F16: total tons | I16: = | J16: =B16*E16 -> 120
A17: Grain/Protein Supplements | B17: =IF(C1=Prices!A1,(((Feed!C13/Feed!C14)*Prices!B7)+((Feed!C12/Feed!C14)*Prices!B8)+((Feed!C11/Feed!C14)*(Prices!B6*2000)/56)),IF(C1=Prices!A2,(((Feed!C13/Feed!C14)*Prices!D7)+((Feed!C12/Feed!C14)*Prices!D8)+((Feed!C11/Feed!C14)*(Prices!D6*2000)/56)),IF(C1=Prices!A3,(((Feed!C13/Feed!C14)*Prices!G7)+((Feed!C12/Feed!C14)*Prices!G8)+((Feed!C11/Feed!C14)*(Prices!G6*2000)/56)),""))) -> 143.1572598 | C17: per ton | D17: x | E17: =Feed!C14 -> 281.376 | F17: total lbs | I17: = | J17: =(B17/2000)*E17 -> 20.14050857
A18: Mineral | B18: =IF(C1=Prices!A1,Prices!B15, IF(C1=Prices!A2,Prices!D15, IF(C1=Prices!A3,Prices!G15, ""))) -> 800 | C18: per ton | D18: x | E18: =Feed!C15 -> 91.25 | F18: total lbs | I18: = | J18: =(B18/2000)*E18 -> 36.5
A19: Other Feed | B19: 0 | C19: per unit | D19: x | E19: 0 | F19: units | I19: = | J19: =B19*E19 -> 0
A20: Labor | B20: 20 | C20: per hour | D20: x | E20: 5.9 | F20: total hours | I20: = | J20: =B20*E20 -> 118
A21: Vet Medicine/Drugs | J21: 28
A22: Replacement Females | B22: =((IF(C1=Prices!A1, Prices!B18, IF(C1=Prices!A2, Prices!D18, IF(C1=Prices!A3,Prices!G18, ""))))/100)*E8 -> 1039.5814 | C22: per head | D22: x | E22: =B5 -> 0.16 | F22: hd | I22: = | J22: =B22*E22 -> 166.333024
A23: Annual Bull Charge or A.I. | J23: =((6000-1700)/4)*0.04 -> 43
A24: Other Livestock Breeding/Marketing | J24: 21
A25: Utilities,Gas, Fuel, Oil | J25: 47
A26: Machinery, Facility/Equip. Repairs | J26: 52
A27: Cash Interest Paid | J27: 28
A28: Other variable costs | J28: 21
A29: Total Variable Costs | J29: =SUM(J14:J28) -> 911.5735326
A31: Fixed Costs
A32: Depreciation | J32: 43
A33: Taxes | J33: 7
A34: Farm/Livestock Insurance | J34: 13
A35: Opportunity Cost of Investment | J35: 122
A36: Other fixed costs | J36: 0
A37: Total Fixed Costs | J37: =SUM(J32:J35) -> 185
A39: Total Costs | J39: =J29+J37 -> 1096.573533
A41: Income Over Variable Costs | J41: =J11-J29 -> 206.3501816
A42: Income Over Total Costs | J42: =J11-J39 -> 21.3501816
A45: Kansas State University, Department of Agricultural Economics - www.agmanager.info
A46: Publication: AM-FMG-CowCalf | J46: =TEXT(Notes!D2,"MMM. DD, YYYY") -> Dec. 01, 2015
A48: KSU Beef Cow-Calf Budget
A92: Kansas State University, Department of Agricultural Economics - www.agmanager.info
A93: Publication: AM-FMG-CowCalf | J93: =J46 -> Dec. 01, 2015
A95: KSU Beef Cow-Calf Budget
A96: Budget Assumptions
A98: Cow-Calf Feed Requirements | B98: (per cow unit + 16% of developing heifer + 4% of bull)
B99: Qty | C99: Unit
A100: Pasture | B100: =Feed!C5 -> 10 | C100: total acres per year
A101: Crop Residue Grazing | B101: =Feed!C6 -> 2 | C101: total acres per year
A102: Prairie/Brome Hay | B102: =Feed!C7 -> 2 | C102: total tons per year
A103: Silage | B103: =Feed!C8 -> 0 | C103: total tons per year
A104: Alfalfa | B104: =Feed!C9 -> 0 | C104: total tons per year
A105: Total Harvested Forage | B105: =Feed!C10 -> 2 | C105: total tons per year
A106: Corn | B106: =Feed!C11 -> 95.04 | C106: total lbs per year
A107: DDG's | B107: =Feed!C12 -> 186.336 | C107: total lbs per year
A108: Soybean Meal | B108: =Feed!C13 -> 0 | C108: total lbs per year
A109: Total Grain/Protein Supplements | B109: =Feed!C14 -> 281.376 | C109: total lbs per year
A110: Salt and Mineral | B110: =Feed!C15 -> 91.25 | C110: total lbs per year
A115: Default Cow-Calf Prices
B116: Current | C116: One Year Out | E116: Five Years Out
A117: Heifer Calf Price ($/cwt) | B117: =Prices!B18 -> 189.0148 | C117: =Prices!D18 -> 183.5398 | E117: =Prices!G18 -> 217.0753434
A118: Steer Calf Price ($/cwt) | B118: =Prices!B19 -> 206.4596491 | C118: =Prices!D19 -> 200.9846491 | E118: =Prices!G19 -> 237.11
A119: Cull cow($/cwt) | B119: =Prices!B22 -> 75 | C119: =Prices!D22 -> 71.45302359 | E119: =Prices!G22 -> 94.04384993
A120: Corn ($/bu) | B120: =Prices!B6 -> 3.77 | C120: =Prices!D6 -> 4.066 | E120: =Prices!G6 -> 3.55
A121: Soybean meal ($/ton) | B121: =Prices!B7 -> 281.6 | C121: =Prices!D7 -> 291.7 | E121: =Prices!G7 -> 326
A122: Distillers Grains ($/ton) | B122: =Prices!B8 -> 147.5 | C122: =Prices!D8 -> 159.0809019 | E122: =Prices!G8 -> 138.8925729
A123: Silage ($/ton) | B123: =Prices!B10 -> 30.16 | C123: =Prices!D10 -> 32.528 | E123: =Prices!G10 -> 28.4
A124: Prairie Hay ($/ton) | B124: =Prices!B11 -> 60 | C124: =Prices!D11 -> 64.71087533 | E124: =Prices!G11 -> 56.49867374
A125: Alfalfa ($/ton) | B125: =Prices!B12 -> 115 | C125: =Prices!D12 -> 124.0291777 | E125: =Prices!G12 -> 108.2891247
A126: Pasture Rental ($/acre) | B126: =Prices!B13 -> 18.06 | C126: =Prices!D13 -> 18.4212 | E126: =Prices!G13 -> 19.866
A127: Crop Residue ($/acre) | B127: =Prices!B14 -> 15 | C127: =Prices!D14 -> 15.3 | E127: =Prices!G14 -> 16.5
A128: Mineral ($/ton) | B128: =Prices!B15 -> 800 | C128: =Prices!D15 -> 816 | E128: =Prices!G15 -> 880
A135: Kansas State University, Department of Agricultural Economics - www.agmanager.info
A136: Publication: AM-FMG-CowCalf | J136: =J93 -> Dec. 01, 2015

Sheet Backgrounding
A1: KSU Beef Backgrounding Budget | C1: Current Prices | G1: =IF(C1=Prices!B4,TEXT(Prices!B5,"MMM-YYYY"),IF(C1=Prices!D4,TEXT(Prices!D5,"MMM-YYYY"),TEXT(Prices!G5,"MMM-YYYY"))) -> (as of December 1, 2015)
L2: Click on "Current Prices" to change to "One Year Out Prices " or "Five Years Out Prices"
A3: Production Efficiency Information
A4: Death Loss | B4: 0.02 | J4: CWT Produced
A5: Days in Backgrounding Lot | B5: 120 | C5: Average Daily Gain | F5: 2.25 | J5: =(E9-E10)/100 -> 2.7
A8: Gross Return | B8: Price | C8: Unit | E8: Qty | F8: Unit | J8: Total per Year
A9: Feeder Animal Sale | B9: =(IF(C1=Prices!A1,Prices!B20,IF(C1=Prices!A2,Prices!D20,IF(C1=Prices!A3,Prices!G20,"")))) -> 180.75 | C9: per cwt | D9: x | E9: =E10+(B5*F5) -> 820 | F9: lbs | I9: = | J9: =B9*(E9/100) -> 1482.15
A10: Purchase price | B10: =(IF(C1=Prices!A1,Prices!B19,IF(C1=Prices!A2,Prices!D19,IF(C1=Prices!A3,Prices!G19,"")))) -> 206.4596491 | C10: per cwt | D10: x | E10: ='Cow-Calf'!E8 -> 550 | F10: lbs | I10: = | J10: =-(B10*(E10/100)) -> -1135.52807
A11: Death Loss | J11: =(B4*J10) -> -22.7105614
A12: Other
A13: Total Gross Return | J13: =SUM(J9:J12) -> 323.9113685
A15: Variable Costs
A16: Pasture | B16: =IF(C1=Prices!A1, Prices!B13, IF(C1=Prices!A2, Prices!D13, IF(C1=Prices!A3,Prices!G13, ""))) -> 18.06 | C16: per acre | D16: x | E16: =Feed!C20 -> 0 | F16: total acres | I16: = | J16: =B16*E16 -> 0
A17: Crop Residue | B17: =IF(C1=Prices!A1, Prices!B14, IF(C1=Prices!A2, Prices!D14, IF(C1=Prices!A3,Prices!G14, ""))) -> 15 | C17: per acre | D17: x | E17: =Feed!C21 -> 0 | F17: total acres | I17: = | J17: =B17*E17 -> 0
A18: Harvested Forage | B18: =IF(C1=Prices!A1,(((Feed!C22/Feed!C25)*Prices!B11)+((Feed!C23/Feed!C25)*Prices!B10)+((Feed!C24/Feed!C25)*Prices!B12)),IF(C1=Prices!A2,(((Feed!C22/Feed!C25)*Prices!D11)+((Feed!C23/Feed!C25)*Prices!D10)+((Feed!C24/Feed!C25)*Prices!D12)),IF(C1=Prices!A3,((Feed!C22/Feed!C25)*Prices!G11)+((Feed!C23/Feed!C25)*Prices!G10)+((Feed!C24/Feed!C25)*Prices!G12),""))) -> 87.5 | C18: per ton | D18: x | E18: =(Feed!C25/2000)*B5 -> 0.42 | F18: total tons | I18: = | J18: =B18*E18 -> 36.75
A19: Grain/Protein Supplements | B19: =IF(C1=Prices!A1,(((Feed!C28/Feed!C29)*Prices!B7)+((Feed!C27/Feed!C29)*Prices!B8)+((Feed!C26/Feed!C29)*(Prices!B6*2000)/56)),IF(C1=Prices!A2,(((Feed!C28/Feed!C29)*Prices!D7)+((Feed!C27/Feed!C29)*Prices!D8)+((Feed!C26/Feed!C29)*(Prices!D6*2000)/56)),IF(C1=Prices!A3,(((Feed!C28/Feed!C29)*Prices!G7)+((Feed!C27/Feed!C29)*Prices!G8)+((Feed!C26/Feed!C29)*(Prices!G6*2000)/56)),""))) -> 141.0714286 | C19: per ton | D19: x | E19: =Feed!C29*B5 -> 1680 | F19: total lbs | I19: = | J19: =(B19/2000)*E19 -> 118.5
A20: Mineral | B20: =IF(C1=Prices!A1,Prices!B16, IF(C1=Prices!A2,Prices!D16, IF(C1=Prices!A3,Prices!G16, ""))) -> 550 | C20: per ton | D20: x | E20: =Feed!C30*B5 -> 36 | F20: total lbs | I20: = | J20: =(B20/2000)*E20 -> 9.9
A21: Other Feed | B21: 0 | C21: per unit | D21: x | E21: 0 | F21: units | I21: = | J21: =B21*E21 -> 0
A22: Labor | B22: 20 | C22: per hour | D22: x | E22: =(B5/30)*0.3 -> 1.2 | F22: hours | I22: = | J22: =B22*E22 -> 24
A23: Vet Medicine/Drugs | J23: =ROUND(9.29*J5,0) -> 25
A24: Marketing costs | J24: =ROUND(5.21*J5,0) -> 14
A25: Utilities,Gas, Fuel, Oil | J25: =ROUND(3.43*J5,0) -> 9
A26: Machinery, Facility/Equip. Repairs | J26: =ROUND(4.48*J5,0) -> 12
A27: Cash Interest Paid | J27: =ROUND(4.82*J5,0) -> 13
A28: Other variable costs | J28: =ROUND(1.59*J5,0) -> 4
A29: Total Variable Costs | J29: =SUM(J16:J28) -> 266.15
A31: Fixed Costs
A32: Depreciation | J32: 9
A33: Taxes | J33: 2
A34: Farm/Livestock Insurance | J34: 2
A35: Opportunity Cost of Investment | J35: 38
A36: Other fixed costs | J36: 0
A37: Total Fixed Costs | J37: =SUM(J32:J36) -> 51
A39: Total Costs | J39: =J29+J37 -> 317.15
A41: Income Over Variable Costs | J41: =J13-J29 -> 57.76136855
A42: Income Over Total Costs | J42: =J13-J39 -> 6.761368549
A44: Kansas State University, Department of Agricultural Economics - www.agmanager.info
A45: Publication: AM-FMG-Backgrounding | J45: =TEXT(Notes!D2,"MMM. DD, YYYY") -> Dec. 01, 2015
A47: KSU Beef Backgrounding Budget
A91: Kansas State University, Department of Agricultural Economics - www.agmanager.info
A92: Publication: AM-FMG-Backgrounding | J92: =J45 -> Dec. 01, 2015
A94: KSU Beef Backgrounding Budget
A95: Budget Assumptions
A97: Backgrounding Feed Requirements | B97: (per animal unit)
B98: Qty | C98: Unit
A99: Pasture | B99: =Feed!C20 -> 0 | C99: total acres for feeding period
A100: Crop Residue | B100: =Feed!C21 -> 0 | C100: total acres for feeding period
A101: Prairie/Brome Hay | B101: =Feed!C22 -> 3.5 | C101: lbs/day
A102: Silage | B102: =Feed!C23 -> 0 | C102: lbs/day
A103: Alfalfa | B103: =Feed!C24 -> 3.5 | C103: lbs/day
A104: Total Harvested Forage | B104: =Feed!C25 -> 7 | C104: lbs/day
A105: Corn | B105: =Feed!C26 -> 7 | C105: lbs/day
A106: DDG's | B106: =Feed!C27 -> 7 | C106: lbs/day
A107: Soybean Meal | B107: =Feed!C28 -> 0 | C107: lbs/day
A108: Total Grain/Protein Supplements | B108: =Feed!C29 -> 14 | C108: lbs/day
A109: Salt and Mineral | B109: =Feed!C30 -> 0.3 | C109: lbs/day
A114: Default Backgrounding Prices
B115: Current | C115: One Year Out | E115: Five Years Out
A116: Heifer Calf Price ($/cwt) | B116: =Prices!B18 -> 189.0148 | C116: =Prices!D18 -> 183.5398 | E116: =Prices!G18 -> 217.0753434
A117: Steer Calf Price ($/cwt) | B117: =Prices!B19 -> 206.4596491 | C117: =Prices!D19 -> 200.9846491 | E117: =Prices!G19 -> 237.11
A118: Feeder Steers($/cwt) | B118: =Prices!B20 -> 180.75 | C118: =Prices!D20 -> 175.275 | E118: =Prices!G20 -> 193.23
A119: Corn ($/bu) | B119: =Prices!B6 -> 3.77 | C119: =Prices!D6 -> 4.066 | E119: =Prices!G6 -> 3.55
A120: Soybean meal ($/ton) | B120: =Prices!B7 -> 281.6 | C120: =Prices!D7 -> 291.7 | E120: =Prices!G7 -> 326
A121: Distillers Grains ($/ton) | B121: =Prices!B8 -> 147.5 | C121: =Prices!D8 -> 159.0809019 | E121: =Prices!G8 -> 138.8925729
A122: Silage ($/ton) | B122: =Prices!B10 -> 30.16 | C122: =Prices!D10 -> 32.528 | E122: =Prices!G10 -> 28.4
A123: Hay ($/ton) | B123: =Prices!B11 -> 60 | C123: =Prices!D11 -> 64.71087533 | E123: =Prices!G11 -> 56.49867374
A124: Alfalfa ($/ton) | B124: =Prices!B12 -> 115 | C124: =Prices!D12 -> 124.0291777 | E124: =Prices!G12 -> 108.2891247
A125: Pasture Rental ($/acre) | B125: =Prices!B13 -> 18.06 | C125: =Prices!D13 -> 18.4212 | E125: =Prices!G13 -> 19.866
A126: Crop Residue ($/acre) | B126: =Prices!B14 -> 15 | C126: =Prices!D14 -> 15.3 | E126: =Prices!G14 -> 16.5
A127: Mineral ($/ton) | B127: =Prices!B16 -> 550 | C127: =Prices!D16 -> 561 | E127: =Prices!G16 -> 605
A135: Kansas State University, Department of Agricultural Economics - www.agmanager.info
A136: Publication: AM-FMG-Backgrounding | J136: =J92 -> Dec. 01, 2015

Sheet Stocker
A1: KSU Beef Stocker Budget | C1: Current Prices | G1: =IF(C1=Prices!B4,TEXT(Prices!B5,"MMM-YYYY"),IF(C1=Prices!D4,TEXT(Prices!D5,"MMM-YYYY"),TEXT(Prices!G5,"MMM-YYYY"))) -> (as of December 1, 2015)
L2: Click on "Current Prices" to change to "One Year Out Prices " or "Five Years Out Prices"
A3: Production Efficiency Information
A4: Death Loss | B4: 0.01 | I4: CWT Produced
A5: Days on Grass | B5: 150 | C5: Average Daily Gain | F5: 1.25 | J5: =(E9-E10)/100 -> 1.875
A8: Gross Return | B8: Price | C8: Unit | E8: Qty | F8: Unit | J8: Total per Year
A9: Feeder Sale | B9: =(IF(C1=Prices!A1,Prices!B20,IF(C1=Prices!A2,Prices!D20,IF(C1=Prices!A3,Prices!G20,"")))) -> 180.75 | C9: per cwt | D9: x | E9: =E10+(B5*F5) -> 737.5 | F9: lbs | I9: = | J9: =B9*(E9/100) -> 1333.03125
A10: Purchase price | B10: =(IF(C1=Prices!A1,Prices!B19,IF(C1=Prices!A2,Prices!D19,IF(C1=Prices!A3,Prices!G19,"")))) -> 206.4596491 | C10: per cwt | D10: x | E10: ='Cow-Calf'!E8 -> 550 | F10: lbs | I10: = | J10: =-(B10*(E10/100)) -> -1135.52807
A11: Death Loss | J11: =(B4*J10) -> -11.3552807
A12: Other
A13: Total Gross Return | J13: =SUM(J9:J12) -> 186.1478992
A15: Variable Costs
A16: Pasture | B16: =IF(C1=Prices!A1, Prices!B13, IF(C1=Prices!A2, Prices!D13, IF(C1=Prices!A3,Prices!G13, ""))) -> 18.06 | C16: per acre | D16: x | E16: =Feed!I5 -> 4 | F16: total acres | I16: = | J16: =B16*E16 -> 72.24
A17: Crop Residue | B17: =IF(C1=Prices!A1, Prices!B14, IF(C1=Prices!A2, Prices!D14, IF(C1=Prices!A3,Prices!G14, ""))) -> 15 | C17: per acre | D17: x | E17: =Feed!I6 -> 0 | F17: total acres | I17: = | J17: =B17*E17 -> 0
A18: Harvested Forage | B18: =IF(Feed!I10>0,(IF(C1=Prices!A1,(((Feed!I7/Feed!I10)*Prices!B11)+((Feed!I8/Feed!I10)*Prices!B10)+((Feed!I9/Feed!I10)*Prices!B12)),IF(C1=Prices!A2,(((Feed!I7/Feed!I10)*Prices!D11)+((Feed!I8/Feed!I10)*Prices!D10)+((Feed!I9/Feed!I10)*Prices!D12)),IF(C1=Prices!A3,((Feed!I7/Feed!I10)*Prices!G11)+((Feed!I8/Feed!I10)*Prices!G10)+((Feed!I9/Feed!I10)*Prices!G12),"")))),0) -> 0 | C18: per ton | D18: x | E18: =Feed!I10 -> 0 | F18: total tons | I18: = | J18: =B18*E18 -> 0
A19: Grain/Protein Supplements | B19: =IF(Feed!I14>0,(IF(C1=Prices!A1,(((Feed!I13/Feed!I14)*Prices!B7)+((Feed!I12/Feed!I14)*Prices!B8)+((Feed!I11/Feed!I14)*(Prices!B6*2000)/56)),IF(C1=Prices!A2,(((Feed!I13/Feed!I14)*Prices!D7)+((Feed!I12/Feed!I14)*Prices!D8)+((Feed!I11/Feed!I14)*(Prices!D6*2000)/56)),IF(C1=Prices!A3,(((Feed!I13/Feed!I14)*Prices!G7)+((Feed!I12/Feed!I14)*Prices!G8)+((Feed!I11/Feed!I14)*(Prices!G6*2000)/56)),"")))),0) -> 0 | C19: per ton | D19: x | E19: =Feed!I14 -> 0 | F19: total lbs | I19: = | J19: =(B19/2000)*E19 -> 0
A20: Mineral | B20: =IF(C1=Prices!A1,Prices!B16, IF(C1=Prices!A2,Prices!D16, IF(C1=Prices!A3,Prices!G16, ""))) -> 550 | C20: per ton | D20: x | E20: =Feed!I15 -> 37.5 | F20: total lbs | I20: = | J20: =(B20/2000)*E20 -> 10.3125
A21: Other Feed | B21: 0 | C21: per unit | D21: x | E21: 0 | F21: units | I21: = | J21: =B21*E21 -> 0
A22: Labor | B22: 20 | C22: per hour | D22: x | E22: =0.2*(B5/30) -> 1 | F22: hours | I22: = | J22: =B22*E22 -> 20
A23: Vet Medicine/Drugs | J23: =ROUND(3.99*J5,0) -> 7
A24: Marketing costs | J24: =ROUND(5.61*J5,0) -> 11
A25: Utilities,Gas, Fuel, Oil | J25: =ROUND(3.25*J5,0) -> 6
A26: Machinery, Facility/Equip. Repairs | J26: =ROUND(5.46*J5,0) -> 10
A27: Cash Interest Paid | J27: =ROUND(3.55*J5,0) -> 7
A28: Other variable costs | J28: =ROUND(1.29*J5,0) -> 2
A29: Total Variable Costs | J29: =SUM(J16:J28) -> 145.5525
A31: Fixed Costs
A32: Depreciation | J32: 10
A33: Taxes | J33: 1.25
A34: Farm/Livestock Insurance | J34: 1.5
A35: Opportunity Cost of Investment | J35: 23
A36: Other fixed costs | J36: 0
A37: Total Fixed Costs | J37: =SUM(J32:J36) -> 35.75
A39: Total Costs | J39: =J29+J37 -> 181.3025
A41: Income Over Variable Costs | J41: =J13-J29 -> 40.59539925
A42: Income Over Total Costs | J42: =J13-J39 -> 4.845399249
A44: Kansas State University, Department of Agricultural Economics - www.agmanager.info
A45: Publication: AM-FMG-Stocker | J45: =TEXT(Notes!D2,"MMM. DD, YYYY") -> Dec. 01, 2015
A47: KSU Beef Stocker Budget
A91: Kansas State University, Department of Agricultural Economics - www.agmanager.info
A92: Publication: AM-FMG-Stocker | J92: =J45 -> Dec. 01, 2015
A94: KSU Beef Stocker Budget
A95: Budget Assumptions
A97: Stocker Feed Requirements | B97: (per animal unit)
B98: Qty | C98: Unit
A99: Pasture | B99: =Feed!I5 -> 4 | C99: total acres for feeding period
A100: Crop Residue | B100: =Feed!I6 -> 0 | C100: total acres for feeding period
A101: Prairie/Brome Hay | B101: =Feed!I7 -> 0 | C101: total tons for feeding period
A102: Silage | B102: =Feed!I8 -> 0 | C102: total tons for feeding period
A103: Alfalfa | B103: =Feed!I9 -> 0 | C103: total tons for feeding period
A104: Total Harvested Forage | B104: =Feed!I10 -> 0 | C104: total tons for feeding period
A105: Corn | B105: =Feed!I11 -> 0 | C105: total pounds for feeding period
A106: DDG's | B106: =Feed!I12 -> 0 | C106: total pounds for feeding period
A107: Soybean Meal | B107: =Feed!I13 -> 0 | C107: total pounds for feeding period
A108: Total Grain/Protein Supplements | B108: =Feed!I14 -> 0 | C108: total pounds for feeding period
A109: Salt and Mineral | B109: =Feed!I15 -> 37.5 | C109: total pounds for feeding period
A114: Default Stocker Prices
B115: Current | C115: One Year Out | E115: Five Years Out
A116: Heifer Calf Price ($/cwt) | B116: =Prices!B18 -> 189.0148 | C116: =Prices!D18 -> 183.5398 | E116: =Prices!G18 -> 217.0753434
A117: Steer Calf Price ($/cwt) | B117: =Prices!B19 -> 206.4596491 | C117: =Prices!D19 -> 200.9846491 | E117: =Prices!G19 -> 237.11
A118: Feeder Steers($/cwt) | B118: =Prices!B20 -> 180.75 | C118: =Prices!D20 -> 175.275 | E118: =Prices!G20 -> 193.23
A119: Corn ($/bu) | B119: =Prices!B6 -> 3.77 | C119: =Prices!D6 -> 4.066 | E119: =Prices!G6 -> 3.55
A120: Soybean meal ($/ton) | B120: =Prices!B7 -> 281.6 | C120: =Prices!D7 -> 291.7 | E120: =Prices!G7 -> 326
A121: Distillers Grains ($/ton) | B121: =Prices!B8 -> 147.5 | C121: =Prices!D8 -> 159.0809019 | E121: =Prices!G8 -> 138.8925729
A122: Silage ($/ton) | B122: =Prices!B10 -> 30.16 | C122: =Prices!D10 -> 32.528 | E122: =Prices!G10 -> 28.4
A123: Hay ($/ton) | B123: =Prices!B11 -> 60 | C123: =Prices!D11 -> 64.71087533 | E123: =Prices!G11 -> 56.49867374
A124: Alfalfa ($/ton) | B124: =Prices!B12 -> 115 | C124: =Prices!D12 -> 124.0291777 | E124: =Prices!G12 -> 108.2891247
A125: Pasture Rental ($/acre) | B125: =Prices!B13 -> 18.06 | C125: =Prices!D13 -> 18.4212 | E125: =Prices!G13 -> 19.866
A126: Crop Residue ($/acre) | B126: =Prices!B14 -> 15 | C126: =Prices!D14 -> 15.3 | E126: =Prices!G14 -> 16.5
A127: Mineral ($/ton) | B127: =Prices!B16 -> 550 | C127: =Prices!D16 -> 561 | E127: =Prices!G16 -> 605
A135: Kansas State University, Department of Agricultural Economics - www.agmanager.info
A136: Publication: AM-FMG-Stocker | J136: =J92 -> Dec. 01, 2015

Sheet Feedlot
A1: KSU Beef Finishing Budget | C1: Current Prices | G1: =IF(C1=Prices!B4,TEXT(Prices!B5,"MMM-YYYY"),IF(C1=Prices!D4,TEXT(Prices!D5,"MMM-YYYY"),TEXT(Prices!G5,"MMM-YYYY"))) -> (as of December 1, 2015)
L2: Click on "Current Prices" to change to "One Year Out Prices " or "Five Years Out Prices"
A3: Production Efficiency Information
A4: Death Loss | B4: 0.015 | I4: CWT Produced
A5: Days on Feed | B5: 160 | C5: Average Daily Gain | F5: 3.7 | J5: =(E8-E9)/100 -> 5.92
A7: Gross Return | B7: Price | C7: Unit | E7: Qty | F7: Unit | J7: Total per Year
A8: Fed Animal Sale | B8: =(IF(C1=Prices!A1,Prices!B21,IF(C1=Prices!A2,Prices!D21,IF(C1=Prices!A3,Prices!G21,"")))) -> 126.34 | C8: per cwt | D8: x | E8: =E9+(B5*F5) -> 1367 | F8: lbs | I8: = | J8: =B8*(E8/100) -> 1727.0678
A9: Purchase price | B9: =(IF(C1=Prices!A1,Prices!B20,IF(C1=Prices!A2,Prices!D20,IF(C1=Prices!A3,Prices!G20,"")))) -> 180.75 | C9: per cwt | D9: x | E9: 775 | F9: lbs | I9: = | J9: =-(B9*(E9/100)) -> -1400.8125
A10: Death Loss | J10: =(B4*J9) -> -21.0121875
A11: Other
A12: Total Gross Return | J12: =SUM(J8:J11) -> 305.2431125
A14: Variable Costs
A15: Harvested Forage | B15: =IF(C1=Prices!A1,(((Feed!I20/Feed!I23)*Prices!B11)+((Feed!I21/Feed!I23)*Prices!B10)+((Feed!I22/Feed!I23)*Prices!B12)),IF(C1=Prices!A2,(((Feed!I20/Feed!I23)*Prices!D11)+((Feed!I21/Feed!I23)*Prices!D10)+((Feed!I22/Feed!I23)*Prices!D12)),IF(C1=Prices!A3,((Feed!I20/Feed!I23)*Prices!G11)+((Feed!I21/Feed!I23)*Prices!G10)+((Feed!I22/Feed!I23)*Prices!G12),""))) -> 87.5 | C15: per ton | D15: x | E15: =(Feed!I23*Feedlot!B5)/2000 -> 0.24 | F15: total tons | I15: = | J15: =B15*E15 -> 21
A16: Grain/Protein Supplements | B16: =IF(C1=Prices!A1,(((Feed!I26/Feed!I27)*Prices!B7)+((Feed!I25/Feed!I27)*Prices!B8)+((Feed!I24/Feed!I27)*(Prices!B6*2000)/56)),IF(C1=Prices!A2,(((Feed!I26/Feed!I27)*Prices!D7)+((Feed!I25/Feed!I27)*Prices!D8)+((Feed!I24/Feed!I27)*(Prices!D6*2000)/56)),IF(C1=Prices!A3,(((Feed!I26/Feed!I27)*Prices!G7)+((Feed!I25/Feed!I27)*Prices!G8)+((Feed!I24/Feed!I27)*(Prices!G6*2000)/56)),""))) -> 137.5649351 | C16: per ton | D16: x | E16: =Feed!I27*B5 -> 3520 | F16: total lbs | I16: = | J16: =(B16/2000)*E16 -> 242.1142857
A17: Mineral | B17: =IF(C1=Prices!A1,Prices!B16, IF(C1=Prices!A2,Prices!D16, IF(C1=Prices!A3,Prices!G16, ""))) -> 550 | C17: per ton | D17: x | E17: =Feed!I28*B5 -> 80 | F17: total lbs | I17: = | J17: =(B17/2000)*E17 -> 22
A18: Other Feed | B18: 0 | C18: per unit | D18: x | E18: 0 | F18: units | I18: = | J18: =B18*E18 -> 0
A19: Labor | B19: 20 | C19: per hour | D19: x | E19: =(B5/30)*0.15 -> 0.8 | F19: hours | I19: = | J19: =B19*E19 -> 16
A20: Vet Medicine/Drugs | J20: =ROUND(3.39*J5,0) -> 20
A21: Marketing costs | J21: =ROUND(1.91*J5,0) -> 11
A22: Utilities,Gas, Fuel, Oil | J22: =ROUND(2.18*J5,0) -> 13
A23: Machinery, Facility/Equip. Repairs | J23: =ROUND(2.7*J5,0) -> 16
A24: Cash Interest Paid | J24: =ROUND(2.85*J5,0) -> 17
A25: Other variable costs | J25: =ROUND(1.42*J5,0) -> 8
A26: Total Variable Costs | J26: =SUM(J15:J25) -> 386.1142857
A28: Fixed Costs
A29: Depreciation | J29: 13
A30: Taxes | J30: 1.25
A31: Farm/Livestock Insurance | J31: 4.5
A32: Opportunity Cost of Investment | J32: 51
A33: Other fixed costs | J33: 0
A34: Total Fixed Costs | J34: =SUM(J29:J32) -> 69.75
A36: Total Costs | J36: =J26+J34 -> 455.8642857
A38: Income Over Variable Costs | J38: =J12-J26 -> -80.87117321
A39: Income Over Total Costs | J39: =J12-J36 -> -150.6211732
A43: Kansas State University, Department of Agricultural Economics - www.agmanager.info
A44: Publication: AM-FMG-Finishing | J44: =TEXT(Notes!D2,"MMM. DD, YYYY") -> Dec. 01, 2015
A46: KSU Beef Finishing Budget
A90: Kansas State University, Department of Agricultural Economics - www.agmanager.info
A91: Publication: AM-FMG-Finishing | J91: =J44 -> Dec. 01, 2015
A93: KSU Beef Finishing Budget
A94: Budget Assumptions
A96: Finishing Feed Requirements | B96: (per animal unit)
B97: Qty | C97: Unit
A98: Prairie/Brome Hay | B98: =Feed!I20 -> 1.5 | C98: lbs/day
A99: Silage | B99: =Feed!I21 -> 0 | C99: lbs/day
A100: Alfalfa | B100: =Feed!I22 -> 1.5 | C100: lbs/day
A101: Total Harvested Forage | B101: =Feed!I23 -> 3 | C101: lbs/day
A102: Corn | B102: =Feed!I24 -> 17 | C102: lbs/day
A103: DDG's | B103: =Feed!I25 -> 5 | C103: lbs/day
A104: Soybean Meal | B104: =Feed!I26 -> 0 | C104: lbs/day
A105: Total Grain/Protein Supplements | B105: =Feed!I27 -> 22 | C105: lbs/day
A106: Salt and Mineral | B106: =Feed!I28 -> 0.5 | C106: lbs/day
A113: Default Beef Finishing Prices
B114: Current | C114: One Year Out | E114: Five Years Out
A115: Feeder Steers ($/cwt) | B115: =Prices!B20 -> 180.75 | C115: =Prices!D20 -> 175.275 | E115: =Prices!G20 -> 193.23
A116: 5-area Fed Cattle ($/cwt) | B116: =Prices!B21 -> 126.34 | C116: =Prices!D21 -> 120.365 | E116: =Prices!G21 -> 158.42
A117: Corn ($/bu) | B117: =Prices!B6 -> 3.77 | C117: =Prices!D6 -> 4.066 | E117: =Prices!G6 -> 3.55
A118: Soybean meal ($/ton) | B118: =Prices!B7 -> 281.6 | C118: =Prices!D7 -> 291.7 | E118: =Prices!G7 -> 326
A119: Distillers Grains ($/ton) | B119: =Prices!B8 -> 147.5 | C119: =Prices!D8 -> 159.0809019 | E119: =Prices!G8 -> 138.8925729
A120: Silage ($/ton) | B120: =Prices!B10 -> 30.16 | C120: =Prices!D10 -> 32.528 | E120: =Prices!G10 -> 28.4
A121: Hay ($/ton) | B121: =Prices!B11 -> 60 | C121: =Prices!D11 -> 64.71087533 | E121: =Prices!G11 -> 56.49867374
A122: Alfalfa ($/ton) | B122: =Prices!B12 -> 115 | C122: =Prices!D12 -> 124.0291777 | E122: =Prices!G12 -> 108.2891247
A123: Pasture Rental ($/acre) | B123: =Prices!B13 -> 18.06 | C123: =Prices!D13 -> 18.4212 | E123: =Prices!G13 -> 19.866
A124: Crop Residue ($/acre) | B124: =Prices!B14 -> 15 | C124: =Prices!D14 -> 15.3 | E124: =Prices!G14 -> 16.5
A125: Mineral ($/ton) | B125: =Prices!B16 -> 550 | C125: =Prices!D16 -> 561 | E125: =Prices!G16 -> 605
A133: Kansas State University, Department of Agricultural Economics - www.agmanager.info
A134: Publication: AM-FMG-Finishing | J134: =J91 -> Dec. 01, 2015
